bitfinex/quotes_ETHUSD_20241003
["timestamp","ask_amount","ask_price","bid_price","bid_amount"]
[1727975184634,4.29227,2329.8,2329.4,0.7922]
[1727975184843,4.29227,2329.8,2329.4,6.022976]
[1727975185035,4.29243,2329.7,2329.4,1.730056]
[1727975185331,4.29276,2329.5,2329.4,1.730056]
[1727975185532,4.29243,2329.7,2329.4,0.7922]
[1727975185843,4.29154,2330.2,2329.7,4.29228]
[1727975186048,4.29154,2330.2,2329.8,0.085831]
[1727975186376,8.58386,2330.0,2329.5,4.84262]
[1727975186578,4.29192,2330.0,2329.6,0.992767]
[1727975186776,4.29173,2330.1,2329.7,0.55]
[1727975187241,4.29173,2330.1,2329.7,4.84239]
[1727975187570,4.29173,2330.1,2329.7,0.55]
[1727975187887,4.29196,2330.0,2329.7,0.55]
[1727975188094,4.29166,2330.1,2329.4,0.7922]
[1727975188295,4.29216,2329.9,2329.5,0.55]
[1727975188588,4.29216,2329.9,2329.6,0.563507]
[1727975188955,8.58432,2329.9,2329.6,0.563507]
[1727975189148,4.29216,2329.9,2329.6,0.563507]
[1727975189349,4.29224,2329.8,2329.6,0.6038042]
[1727975189557,4.29224,2329.8,2329.6,0.563507]
[1727975189886,4.29189,2330.0,2329.6,0.563507]
[1727975190102,4.29205,2329.9,2329.7,0.5406117]
[1727975190682,7.29114,2330.4,2329.7,0.5406117]
[1727975190985,4.29183,2330.1,2329.7,0.5406117]
[1727975191191,4.29191,2330.0,2329.7,0.5406117]
[1727975191583,4.29191,2330.0,2329.8,0.63583685]
[1727975191761,4.29147,2330.3,2329.9,0.7716]
[1727975191973,4.29024,2330.9,2330.1,0.55]
[1727975192161,4.29024,2330.9,2330.4,5.61261]
[1727975192498,5.06872,2331.5,2330.6,0.55]
[1727975192656,5.06872,2331.5,2330.5,0.06376635]
[1727975192657,0.7795,2331.5,2330.8,1.3216]
[1727975192853,4.28954,2331.3,2330.9,0.63133648]
[1727975193053,8.57871,2331.4,2331.0,4.83999]
[1727975193270,8.57871,2331.4,2330.9,4.92140648]
[1727975193271,4.28861,2331.8,2331.2,4.83953]
[1727975193496,0.1159932,2332.2,2331.1,0.7716]
[1727975193497,4.28935,2331.4,2331.1,0.7716]
[1727975193711,0.8954932,2332.2,2331.1,0.7716]
[1727975193712,4.28909,2331.5,2331.1,0.7716]
[1727975194001,4.28909,2331.5,2331.3,0.55]
[1727975194165,0.44912302,2332.1,2331.3,0.55]
[1727975194501,4.28972,2331.2,2330.8,0.8118]
[1727975194706,4.29008,2331.0,2330.8,0.8118]
[1727975195421,4.29008,2331.0,2330.4,0.752]
[1727975195422,4.29092,2330.5,2330.4,0.752]
[1727975195622,4.29147,2330.2,2330.0,0.89459896]
[1727975195783,4.29166,2330.1,2329.8,1.64659896]
[1727975195986,4.29185,2330.0,2329.8,0.752]
[1727975196326,4.29147,2330.2,2329.8,0.752]
[1727975196490,4.29147,2330.2,2329.8,5.04419]
[1727975196993,4.29167,2330.1,2329.8,0.752]
[1727975197197,3.0,2330.2,2329.8,0.752]
[1727975197383,7.29112,2330.4,2329.9,0.55]
[1727975197784,7.29093,2330.5,2330.0,4.29181]
[1727975198023,4.29112,2330.4,2330.0,4.29181]
[1727975198317,7.29093,2330.5,2330.0,4.29175]
[1727975198727,4.29124,2330.4,2329.9,4.84201]
[1727975198934,4.29124,2330.4,2329.8,5.0441]
[1727975198935,4.29118,2330.4,2329.8,0.752]
[1727975199189,4.29208,2329.9,2329.5,5.06176]
[1727975199341,5.06648,2330.4,2329.5,5.06176]
[1727975199342,0.7753,2330.4,2329.5,5.06176]
[1727975199501,4.29184,2330.1,2329.6,4.29257]
[1727975200026,4.29206,2329.9,2329.5,0.769]
[1727975200205,3.0,2330.2,2329.6,4.29257]
[1727975200538,4.29167,2330.1,2329.6,4.29243]
[1727975200696,4.29145,2330.3,2329.7,4.29228]
[1727975200697,4.29159,2330.2,2329.7,4.29228]
[1727975201036,4.29119,2330.4,2329.9,4.29198]
[1727975201339,4.29138,2330.3,2330.0,0.06702424]
[1727975201700,4.29138,2330.3,2330.1,0.55]
[1727975201901,4.29119,2330.4,2330.0,0.55]
[1727975202126,4.29119,2330.4,2330.1,0.8184]
[1727975202335,4.29082,2330.6,2330.2,0.55]
[1727975202543,4.29111,2330.4,2330.2,0.55]
[1727975202920,4.29093,2330.5,2330.2,0.55]
[1727975203120,4.29086,2330.6,2330.2,0.55]
[1727975203455,4.29086,2330.6,2330.2,4.84147]
[1727975203619,8.58175,2330.6,2330.2,0.55]
[1727975203821,8.58175,2330.6,2330.2,1.545176]
[1727975204010,4.29086,2330.6,2330.2,1.545176]
[1727975204210,7.29053,2330.8,2330.2,5.836646]
[1727975204211,4.29053,2330.8,2330.2,5.836646]
[1727975204515,4.29085,2330.6,2330.4,0.55]
[1727975204916,4.29019,2330.9,2330.6,0.755]
[1727975205112,4.28977,2331.2,2330.7,0.55]
[1727975205333,4.28938,2331.4,2331.0,0.755]
[1727975205534,4.28885,2331.7,2331.1,0.55]
[1727975205759,0.8061,2332.0,2331.1,0.55]
[1727975205940,4.28921,2331.5,2331.1,1.109486]
[1727975206109,8.57844,2331.5,2331.1,0.55]
[1727975206313,4.28921,2331.5,2331.1,0.55]
[1727975206615,4.28884,2331.7,2331.3,0.55]
[1727975206922,4.28847,2331.9,2331.3,4.83941]
[1727975206923,4.2885,2331.9,2331.3,4.83941]
[1727975207251,4.28871,2331.7,2331.3,4.83941]
[1727975207757,4.2885,2331.9,2331.3,4.83931]
[1727975207968,4.28853,2331.8,2331.5,0.55]
[1727975208779,4.2885,2331.9,2331.5,2.4512]
[1727975209061,4.28888,2331.7,2331.5,2.4512]
[1727975209224,4.28858,2331.8,2331.5,2.4512]
[1727975209425,4.2888,2331.7,2331.5,2.4512]
[1727975209625,4.28836,2331.9,2331.5,2.4512]
[1727975209829,4.28836,2331.9,2331.6,0.8087]
[1727975210171,4.28829,2332.0,2331.6,0.8087]
[1727975210667,8.57663,2332.0,2331.6,0.8087]
[1727975210835,4.28871,2331.7,2331.5,1.9012]
[1727975211039,4.28873,2331.7,2331.5,1.9012]
[1727975211255,3.0,2332.0,2331.5,1.9012]
[1727975211422,4.28847,2331.9,2331.5,1.9012]
[1727975211622,8.57698,2331.9,2331.5,1.9012]
[1727975211928,7.4038732,2332.2,2331.7,5.09729]
[1727975212151,4.28798,2332.1,2331.7,5.09729]
[1727975212360,0.1159932,2332.2,2331.8,0.55]
[1727975212963,4.28807,2332.1,2331.8,0.55]
[1727975213131,4.28843,2331.9,2331.7,0.8087]
[1727975213666,4.28878,2331.7,2331.5,1.9012]
[1727975214219,4.28848,2331.9,2331.5,1.9012]
[1727975214337,4.28829,2332.0,2331.5,6.19019]
[1727975214540,4.28829,2332.0,2331.5,6.71482931]
[1727975214747,4.28836,2331.9,2331.5,6.71482931]
[1727975215778,8.57688,2331.9,2331.5,2.42583931]
[1727975215942,4.28836,2331.9,2331.5,2.42583931]
[1727975216268,4.28836,2331.9,2331.6,0.32345393]
[1727975216469,8.57682,2331.9,2331.5,2.42583931]
[1727975216691,4.28836,2331.9,2331.5,6.71482931]
[1727975217363,4.4038132,2332.2,2331.8,4.28844]
[1727975217958,0.1159932,2332.2,2331.7,4.28855]
[1727975218144,0.1159932,2332.2,2332.0,0.7992]
[1727975218574,0.1159932,2332.2,2332.1,4.83798]
[1727975219842,0.1159932,2332.2,2332.1,5.59888]
[1727975221811,0.1159932,2332.2,2332.1,8.59888]
[1727975221931,4.28573,2333.4,2332.1,9.90927871]
[1727975222137,4.28541,2333.5,2333.0,8.57248]
[1727975222333,0.44874972,2333.4,2333.0,0.55]
[1727975222541,0.44874972,2333.4,2333.2,4.28594]
[1727975222775,0.44874972,2333.4,2333.3,4.83577]
[1727975222941,0.44874972,2333.4,2333.3,5.61327]
[1727975223147,4.28487,2333.8,2333.5,0.55]
[1727975223548,4.28487,2333.8,2333.4,0.55]
[1727975223849,4.28461,2334.0,2333.5,4.28524]
[1727975224180,8.05777,2334.2,2333.3,0.7775]
[1727975224181,4.28423,2334.2,2333.8,4.28482]
[1727975224336,4.28391,2334.4,2334.0,4.28447]
[1727975224536,4.3995132,2334.6,2334.0,4.28447]
[1727975224537,4.3995132,2334.6,2334.0,0.483447]
[1727975224758,4.3995132,2334.6,2333.9,0.55]
[1727975224759,4.3994832,2334.6,2334.2,0.55]
[1727975224960,4.3994832,2334.6,2334.4,0.55]
[1727975224961,0.1159932,2334.6,2334.4,0.55]
[1727975225879,4.28386,2334.4,2333.8,0.55]
[1727975226080,4.28386,2334.4,2334.0,0.55]
[1727975226243,4.3995232,2334.6,2334.2,0.55]
[1727975226637,4.2836,2334.5,2334.2,0.55]
[1727975226890,0.1159932,2334.6,2334.2,2.4512]
[1727975227035,0.1159932,2334.6,2334.5,4.83357]
[1727975227236,0.1159932,2334.6,2334.5,4.89917691]
[1727975227473,0.1159932,2334.6,2334.5,5.8996286]
[1727975227676,0.1159932,2334.6,2334.5,1.6160586]
[1727975227979,0.1159932,2334.6,2334.4,0.55]
[1727975228191,0.1159932,2334.6,2334.5,4.28357]
[1727975228338,0.1159932,2334.6,2334.5,0.55]
[1727975228783,0.1159932,2334.6,2334.4,0.55]
[1727975228991,4.28368,2334.5,2334.3,0.55]
[1727975229331,4.28368,2334.5,2334.2,1.9012]
[1727975229824,4.28393,2334.3,2334.2,1.9012]
[1727975230785,5.940012,2334.3,2334.2,1.9012]
[1727975231808,8.940012,2334.3,2334.2,1.9012]
[1727975232828,0.1159932,2334.6,2334.2,6.1852]
[1727975233066,0.1159932,2334.6,2334.3,4.28393]
[1727975233213,0.1159932,2334.6,2334.4,4.28373]
[1727975233427,0.1159932,2334.6,2334.5,0.856766]
[1727975233725,4.28373,2334.5,2334.2,1.9012]
[1727975233938,4.28392,2334.4,2334.2,1.9012]
[1727975234084,4.28393,2334.3,2334.2,1.9012]
[1727975234698,5.04803,2334.3,2334.2,1.9012]
[1727975235015,8.981225,2334.3,2334.2,1.9012]
[1727975236601,9.034425,2334.3,2334.2,1.54707332]
[1727975237204,4.750495,2334.3,2332.7,7.46]
[1727975237403,4.28664,2332.9,2332.6,0.7969]
[1727975237646,4.28664,2332.9,2332.3,12.34]
[1727975237647,4.28656,2332.9,2332.3,0.8117]
[1727975237818,4.28636,2333.0,2332.5,4.28721]
[1727975238019,4.28615,2333.1,2332.5,0.938622]
[1727975238225,4.28731,2332.5,2332.2,1.41973487]
[1727975238457,4.28761,2332.3,2332.0,0.7617]
[1727975238601,4.28761,2332.3,2332.2,1.547]
[1727975238803,4.28745,2332.4,2332.2,1.547]
[1727975239003,4.28761,2332.3,2332.2,1.547]
[1727975239199,7.28718,2332.6,2332.2,1.547]
[1727975239403,0.7644,2332.8,2332.2,1.547]
[1727975239642,3.0,2332.4,2332.2,1.547]
[1727975240219,4.28761,2332.3,2332.2,1.547]
[1727975240937,8.09991,2332.3,2332.2,1.547]
[1727975242957,8.64991,2332.3,2332.2,1.547]
[1727975243107,8.09991,2332.3,2332.2,1.547]
[1727975247569,8.64991,2332.3,2332.2,1.547]
[1727975247725,9.943647,2332.3,2332.2,1.547]
[1727975249151,9.393647,2332.3,2332.2,1.547]
[1727975251638,4.28761,2332.3,2332.2,1.547]
[1727975253843,4.28746,2332.4,2332.2,1.547]
[1727975254188,4.28761,2332.3,2332.2,1.547]
[1727975254357,4.28725,2332.5,2332.2,1.547]
[1727975254700,4.73531369,2333.0,2332.2,1.547]
[1727975254701,9.02178369,2333.0,2332.5,4.28719]
[1727975254843,9.02178369,2333.0,2332.5,0.566509]
[1727975254844,4.28663,2332.9,2332.5,0.566509]
[1727975255168,4.2867,2332.8,2332.6,0.8279]
[1727975255369,4.28654,2332.9,2332.6,0.8279]
[1727975255545,0.44881423,2333.3,2332.6,0.8279]
[1727975255758,4.28674,2332.8,2332.4,0.55]
[1727975256100,4.28643,2333.0,2332.4,4.8374]
[1727975256308,4.28643,2333.0,2332.5,0.994273]
[1727975256453,4.28697,2332.7,2332.5,0.994273]
[1727975256658,4.28666,2332.9,2332.5,0.994273]
[1727975256888,4.28634,2333.0,2332.5,5.281483]
[1727975257100,4.28598,2333.2,2332.7,0.55]
[1727975257264,0.8152,2333.7,2332.7,0.55]
[1727975257265,8.57291,2333.0,2332.7,0.55]
[1727975257469,4.28559,2333.4,2332.7,0.55]
[1727975257470,3.0,2333.1,2332.7,4.83687]
[1727975257669,7.28614,2333.1,2332.9,0.55]
[1727975257857,3.0,2333.1,2332.9,0.55]
[1727975258253,4.2857,2333.4,2333.0,0.7788]
[1727975258508,8.5699,2333.8,2333.4,0.8229]
[1727975258712,8.5699,2333.8,2333.4,1.333758]
[1727975258713,4.28523,2333.6,2333.4,1.333758]
[1727975258896,4.28523,2333.6,2333.4,0.8229]
[1727975259320,4.28459,2334.0,2333.4,5.10834]
[1727975259465,4.28474,2333.9,2333.5,0.55]
[1727975259811,4.28459,2334.0,2333.5,0.55]
[1727975260004,0.44881441,2334.3,2333.0,4.28631]
[1727975260005,4.73277441,2334.3,2334.0,0.55]
[1727975260167,4.28421,2334.2,2334.0,0.55]
[1727975260367,4.28396,2334.3,2334.0,0.55]
[1727975260614,4.28422,2334.2,2333.9,0.7871]
[1727975260909,4.28443,2334.1,2333.9,0.7871]
[1727975261605,0.1159932,2334.6,2334.0,4.83448]
[1727975261606,4.28386,2334.4,2334.0,4.83448]
[1727975261817,0.1159932,2334.6,2334.3,0.7738]
[1727975261996,0.1159932,2334.6,2334.4,0.55]
[1727975262174,0.1159932,2334.6,2334.3,0.7738]
[1727975262692,4.28368,2334.5,2334.3,0.7738]
[1727975262868,0.1159932,2334.6,2333.5,0.7738]
[1727975263069,0.1159932,2334.6,2333.1,3.89459896]
[1727975263070,4.28403,2334.3,2333.8,4.28485]
[1727975263319,4.28403,2334.3,2333.9,1.110865]
[1727975263472,4.2847,2333.9,2333.7,0.7738]
[1727975263797,4.28485,2333.8,2333.7,0.7738]
[1727975264012,4.2847,2333.9,2333.1,4.28601]
[1727975264013,4.28542,2333.5,2333.1,0.8197]
[1727975264309,4.28534,2333.6,2333.1,5.10584]
[1727975264471,4.28541,2333.5,2333.1,1.758922]
[1727975265115,4.28516,2333.7,2333.1,1.758922]
[1727975265116,4.28523,2333.6,2333.1,6.044902]
[1727975265318,4.28516,2333.7,2333.2,4.28594]
[1727975265513,4.28516,2333.7,2333.2,1.0330842]
[1727975265812,0.3,2334.0,2333.1,0.8197]
[1727975265813,4.28559,2333.4,2333.1,0.8197]
[1727975267039,4.28579,2333.3,2333.1,0.8197]
[1727975267314,4.28559,2333.4,2333.1,0.8197]
[1727975267514,4.28549,2333.5,2333.1,0.8197]
[1727975268029,4.28572,2333.4,2333.1,0.8197]
[1727975268822,4.28584,2333.3,2333.1,0.8197]
[1727975268973,4.28595,2333.2,2333.1,0.8197]
[1727975270122,4.28615,2333.1,2332.8,0.55]
[1727975270278,4.28596,2333.2,2332.8,0.55]
[1727975270743,4.28596,2333.2,2332.8,5.827991]
[1727975270904,4.28584,2333.3,2332.8,5.827991]
[1727975271409,4.28584,2333.3,2332.8,1.541311]
[1727975271410,4.28595,2333.2,2332.8,1.541311]
[1727975271944,4.2858,2333.3,2332.9,0.07996669]
[1727975272241,8.57173,2333.3,2332.9,0.07996669]
[1727975272614,7.28496,2333.8,2333.1,4.28601]
[1727975272828,4.28534,2333.6,2333.2,4.92164603]
[1727975272999,4.28542,2333.5,2333.2,0.63570603]
[1727975273198,7.28512,2333.7,2333.3,4.28569]
[1727975273721,4.28519,2333.7,2333.2,5.4108436]
[1727975273934,4.2847,2333.9,2333.4,4.83541]
[1727975274315,4.28487,2333.8,2333.5,0.55]
[1727975274917,4.2848,2333.9,2333.4,0.55]
[1727975275144,4.28498,2333.8,2333.4,5.88793936]
[1727975275806,4.28495,2333.8,2333.4,5.88793936]
[1727975276705,4.28505,2333.7,2333.4,1.60236936]
[1727975276900,4.28469,2333.9,2333.4,5.88779936]
[1727975277351,4.28487,2333.8,2333.4,5.88779936]
[1727975277637,4.2847,2333.9,2333.5,4.95688994]
[1727975277843,4.2847,2333.9,2333.5,0.67149994]
[1727975278045,4.28499,2333.8,2333.4,0.55]
[1727975278274,0.7759,2334.4,2333.3,0.8272]
[1727975278556,4.28517,2333.7,2333.3,5.11292]
[1727975279058,4.28488,2333.8,2333.4,4.28558]
[1727975279363,4.28488,2333.8,2333.5,0.93985]
[1727975280060,4.28382,2334.4,2333.8,4.28473]
[1727975280233,4.2843,2334.2,2333.9,0.55]
[1727975280435,4.28504,2333.7,2333.6,0.7753]
[1727975280623,1.25213,2334.2,2333.6,0.7753]
[1727975280957,4.28504,2333.7,2333.6,0.7753]
[1727975281338,4.28474,2333.9,2333.6,0.7753]
[1727975281653,4.28494,2333.8,2333.6,0.7753]
[1727975282257,4.28504,2333.7,2333.6,0.7753]
[1727975282423,4.28452,2334.0,2333.2,0.7977]
[1727975282619,4.28532,2333.6,2333.2,5.08354]
[1727975282856,4.28496,2333.8,2333.2,1.29151715]
[1727975283035,4.28506,2333.7,2333.3,4.28574]
[1727975283234,4.28451,2334.0,2333.5,4.28527]
[1727975283436,4.28451,2334.0,2333.3,0.8257]
[1727975283437,4.28513,2333.7,2333.3,0.8257]
[1727975283636,4.28513,2333.7,2333.3,6.10059072]
[1727975283958,4.28513,2333.7,2333.3,6.15756668]
[1727975284161,7.28396,2334.3,2333.3,1.87179668]
[1727975284162,3.0,2334.3,2333.3,1.87179668]
[1727975284372,0.7913,2334.5,2333.6,4.2852]
[1727975284373,7.28453,2334.0,2333.6,4.2852]
[1727975284573,4.28453,2334.0,2333.6,4.2852]
[1727975285163,4.2845,2334.0,2333.5,0.7686]
[1727975285319,4.28508,2333.7,2333.2,0.7674]
[1727975285516,0.428508,2333.7,2333.0,7.46]
[1727975285761,4.28564,2333.4,2333.0,11.74632]
[1727975285922,7.28499,2333.8,2333.2,4.28586]
[1727975286121,4.3994932,2334.6,2333.2,4.28586]
[1727975286122,3.0,2334.1,2333.7,4.28503]
[1727975286368,4.28487,2333.8,2333.6,0.7509]
[1727975286519,4.28487,2333.8,2333.0,12.54802843]
[1727975286520,3.8094,2334.1,2333.2,0.7509]
[1727975286734,4.28563,2333.4,2333.2,0.7509]
[1727975287028,4.286,2333.2,2333.0,7.46]
[1727975287230,4.28632,2333.0,2332.9,0.7509]
[1727975287868,4.28691,2332.7,2332.5,0.8227]
[1727975288069,4.28677,2332.8,2332.5,0.8227]
[1727975288219,8.08036,2333.2,2332.5,0.8227]
[1727975288220,4.28706,2332.6,2332.5,0.8227]
[1727975288425,4.28751,2332.4,2332.2,2.3394]
[1727975288718,4.28727,2332.5,2332.2,2.3394]
[1727975288959,4.28758,2332.4,2332.2,2.3394]
[1727975289523,4.28708,2332.6,2332.2,2.3394]
[1727975289664,4.28724,2332.5,2332.2,2.3394]
[1727975290135,4.28707,2332.6,2332.2,6.62718]
[1727975291139,4.28632,2333.0,2332.5,0.55]
[1727975291140,4.28653,2332.9,2332.5,0.55]
[1727975291342,3.0,2333.1,2332.2,2.3394]
[1727975291563,4.2875,2332.4,2332.2,1.547]
[1727975291743,4.28761,2332.3,2332.2,1.547]
[1727975292168,4.28733,2332.5,2332.2,1.547]
[1727975292577,8.57471,2332.5,2332.2,1.547]
[1727975292733,4.28733,2332.5,2332.2,1.547]
[1727975293077,4.28709,2332.6,2332.2,5.83466]
[1727975293246,4.28672,2332.8,2332.4,0.55]
[1727975293247,3.0,2332.8,2332.4,0.55]
[1727975293571,3.0,2332.8,2332.3,1.44093582]
[1727975293572,4.28742,2332.4,2332.3,0.7717]
[1727975293782,4.28727,2332.5,2332.2,1.547]
[1727975293953,0.7868,2333.2,2332.5,4.28716]
[1727975293954,4.28626,2333.1,2332.5,4.28716]
[1727975294160,4.28635,2333.0,2332.4,0.7717]
[1727975294481,4.28635,2333.0,2332.5,4.28716]
[1727975294685,4.28635,2333.0,2332.5,5.24593572]
[1727975294892,5.07292,2333.2,2332.6,0.55]
[1727975294893,4.28612,2333.2,2332.6,0.55]
[1727975295168,0.7502,2333.5,2332.6,0.7856]
[1727975295169,4.28588,2333.3,2332.6,0.7856]
[1727975295379,4.28588,2333.3,2332.9,4.28648]
[1727975295675,4.28621,2333.1,2332.7,4.83679]
[1727975296053,4.28662,2332.9,2332.6,0.7856]
[1727975296256,4.28659,2332.9,2332.6,0.7856]
[1727975296492,4.28687,2332.7,2332.6,0.7856]
[1727975296673,4.28687,2332.7,2332.2,5.83464]
[1727975296674,4.28733,2332.5,2332.3,0.828]
[1727975297190,3.0,2332.9,2332.3,0.828]
[1727975297482,4.28648,2333.0,2332.6,4.28698]
[1727975297695,4.28648,2333.0,2332.5,4.28723]
[1727975297696,4.28656,2332.9,2332.5,4.28723]
[1727975297849,7.28616,2333.1,2332.6,0.55]
[1727975298185,4.28632,2333.0,2332.7,0.55]
[1727975298382,4.28659,2332.9,2332.7,0.55]
[1727975298678,4.28659,2332.9,2332.5,0.55]
[1727975298880,3.0,2333.1,2332.3,2.240297]
[1727975299189,5.04698,2333.3,2332.2,2.44159896]
[1727975299190,4.28742,2332.4,2332.2,1.547]
[1727975299496,0.7806,2333.3,2332.5,0.7538]
[1727975299695,3.0,2333.1,2332.6,4.28697]
[1727975299863,4.28638,2333.0,2332.7,0.932783]
[1727975300042,4.28614,2333.1,2332.7,0.932783]
[1727975300246,0.7806,2333.6,2332.7,0.932783]
[1727975300247,4.28656,2332.9,2332.7,0.932783]
[1727975300594,4.287,2332.7,2332.2,3.19539896]
[1727975300798,0.7806,2333.0,2332.3,0.89459896]
[1727975300799,4.2865,2333.0,2332.3,0.89459896]
[1727975301006,4.2865,2333.0,2332.7,0.8078]
[1727975301297,4.28647,2333.0,2332.7,0.8078]
[1727975301499,0.7807,2333.6,2332.7,1.3173]
[1727975301718,3.0,2333.4,2332.7,0.8078]
[1727975301872,0.7807,2333.6,2332.8,4.83657]
[1727975302077,4.2861,2333.2,2332.8,0.55]
[1727975302298,4.28604,2333.2,2332.8,4.83664]
[1727975302607,5.06592,2333.6,2332.8,0.55]
[1727975302608,4.28632,2333.0,2332.8,0.55]
[1727975302786,4.28618,2333.1,2332.8,0.55]
[1727975302961,4.28655,2332.9,2332.7,0.8078]
[1727975303395,4.28652,2332.9,2332.7,0.8078]
[1727975303905,4.28636,2333.0,2332.7,0.8078]
[1727975304118,4.28658,2332.9,2332.7,0.8078]
[1727975304408,4.28621,2333.1,2332.8,0.55]
[1727975304604,4.28642,2333.0,2332.8,0.55]
[1727975304919,4.28635,2333.0,2332.8,0.55]
[1727975305268,4.28719,2332.6,2332.4,0.753]
[1727975305587,0.857242,2333.0,2332.6,4.28704]
[1727975305588,4.28642,2333.0,2332.6,4.28704]
[1727975305800,4.28618,2333.1,2332.6,4.28687]
[1727975306109,3.0,2333.0,2332.4,0.753]
[1727975306272,3.0,2333.0,2332.4,5.04029]
[1727975306273,4.28661,2332.9,2332.4,5.04029]
[1727975306478,3.0,2333.0,2332.5,0.504029]
[1727975306789,4.28665,2332.9,2332.5,0.55]
[1727975306988,4.28676,2332.8,2332.5,0.55]
[1727975307189,4.28636,2333.0,2332.5,0.55]
[1727975307393,7.28634,2333.0,2332.7,0.55]
[1727975307604,4.28604,2333.2,2332.7,0.55]
[1727975307818,3.7961,2333.7,2332.9,0.7768]
[1727975307962,4.28632,2333.0,2332.9,0.7768]
[1727975308163,4.28586,2333.3,2332.9,0.7768]
[1727975308383,4.28614,2333.1,2332.9,0.7768]
[1727975308580,4.28632,2333.0,2332.9,0.7768]
[1727975308779,4.28617,2333.1,2332.9,0.7768]
[1727975309421,3.428617,2333.1,2332.3,0.7519]
[1727975309638,4.28761,2332.3,2332.2,1.547]
[1727975309917,4.28706,2332.7,2332.2,1.547]
[1727975309918,4.28696,2332.7,2332.2,5.83475]
[1727975310120,0.7653,2333.0,2332.2,5.83475]
[1727975310121,4.28682,2332.8,2332.3,4.28753]
[1727975310331,4.2862,2333.1,2332.5,5.06832]
[1727975310512,0.8303,2333.6,2332.6,0.506832]
[1727975310680,4.28578,2333.3,2332.8,0.7689]
[1727975311016,4.2861,2333.2,2332.9,0.55]
[1727975311171,4.28648,2333.0,2332.8,0.7689]
[1727975311377,4.28681,2332.8,2332.5,0.7506]
[1727975311694,4.28695,2332.7,2332.5,2.0898489]
[1727975311897,0.7605,2333.0,2332.3,0.89459896]
[1727975312095,4.28761,2332.3,2332.2,2.2976]
[1727975312306,4.28761,2332.3,2332.2,1.547]
[1727975313616,7.28761,2332.3,2332.2,1.547]
[1727975318018,4.28761,2332.3,2332.2,1.547]
[1727975319430,4.28742,2332.4,2332.2,1.547]
[1727975319803,4.28761,2332.3,2332.2,1.547]
[1727975320831,4.28719,2332.6,2332.2,1.547]
[1727975321138,4.28761,2332.3,2332.2,1.547]
[1727975321500,4.28744,2332.4,2332.2,1.547]
[1727975321501,4.28746,2332.4,2332.2,1.547]
[1727975322011,4.28761,2332.3,2332.2,1.547]
[1727975322196,4.28746,2332.4,2332.2,1.547]
[1727975322396,4.28761,2332.3,2332.2,1.547]
[1727975322936,4.28746,2332.4,2332.2,1.547]
[1727975323241,3.0,2332.6,2332.2,1.547]
[1727975323242,4.28725,2332.5,2332.2,1.547]
[1727975323410,3.0,2332.6,2332.2,1.547]
[1727975323602,4.28733,2332.5,2332.2,1.547]
[1727975324142,4.28706,2332.6,2332.3,1.3695]
[1727975324811,4.28661,2332.9,2332.3,1.3695]
[1727975325013,4.28663,2332.9,2332.5,0.55]
[1727975325336,4.28671,2332.8,2332.4,0.55]
[1727975325493,4.28671,2332.8,2332.5,0.5657]
[1727975326140,4.28697,2332.7,2332.5,0.5657]
[1727975326324,4.28697,2332.7,2332.4,0.55]
[1727975326636,4.28649,2333.0,2332.4,0.55]
[1727975326840,7.28653,2332.9,2332.4,4.83739]
[1727975327135,4.2868,2332.8,2332.4,0.55]
[1727975327306,11.57316,2332.9,2332.5,0.5657]
[1727975327507,4.28686,2332.8,2332.5,0.5657]
[1727975327707,4.28691,2332.7,2332.5,0.5657]
[1727975327937,4.28742,2332.4,2332.3,0.8195]
[1727975328233,0.8112,2333.1,2332.4,4.28742]
[1727975328234,4.28663,2332.9,2332.4,4.28742]
[1727975328420,4.2868,2332.8,2332.3,0.8195]
[1727975328593,4.28696,2332.7,2332.3,0.8195]
[1727975328792,4.28696,2332.7,2332.4,1.094186]
[1727975329230,4.2868,2332.8,2332.4,1.094186]
[1727975329434,4.2868,2332.8,2332.5,0.55]
[1727975329642,4.28706,2332.6,2332.3,0.8195]
[1727975329822,4.28706,2332.6,2332.3,1.913722]
[1727975330697,4.28761,2332.3,2332.2,1.547]
[1727975331426,4.28743,2332.4,2332.2,1.547]
[1727975331427,4.2875,2332.4,2332.2,1.547]
[1727975332231,8.57502,2332.4,2332.2,1.547]
[1727975332814,4.28761,2332.3,2332.2,1.547]
[1727975333019,8.57503,2332.4,2332.2,1.547]
[1727975333249,4.28761,2332.3,2332.2,1.547]
[1727975333630,4.28713,2332.6,2332.2,1.77975]
[1727975333961,4.28646,2333.0,2332.5,0.55]
[1727975334111,4.2872,2332.6,2332.4,0.7739]
[1727975334302,4.28719,2332.6,2332.4,0.7739]
[1727975334741,4.28686,2332.8,2332.4,0.7739]
[1727975335059,4.2869,2332.7,2332.4,0.7739]
[1727975335200,4.2872,2332.6,2332.4,0.7739]
[1727975335400,4.28724,2332.5,2332.3,0.55]
[1727975335723,8.57458,2332.5,2332.3,0.55]
[1727975335901,4.28724,2332.5,2332.3,0.55]
[1727975336102,4.28742,2332.4,2332.2,2.3486]
[1727975336400,4.28761,2332.3,2332.2,1.547]
[1727975336946,5.145113,2332.3,2332.2,1.547]